Cogmind - Beta 12 @@@ ROGUE MODE // 2023.08.17 @ 18:04:43 Player: Waste Result: Destroyed by D-53 Grenadier with Mini Grenade Launcher Performance ------------- Evolutions (0) 0 Regions Visited (2) 400 Robots Destroyed (23) 115 Value Destroyed (498) 498 Prototype IDs (0) 0 Alien Tech Used (0) 0 Bonus (19) 19 TOTAL SCORE: 1032 Bonus ------- High Alert Combat Kills 19 Cogmind --------- Core Integrity 0/250 Matter 300/300 Energy 243/250 System Corruption 0% Temperature Cool (0) Movement Walking (190) Ox1 Location -10/Mines Parts ------- > --- POWER (1) -------- Ion Engine > --- PROPULSION (2) --- Aluminum Leg Aluminum Leg > --- UTILITY (2) ------ Improved Heat Sink Large Storage Unit > --- WEAPON (2) ------- Small Laser Small Laser > --- INVENTORY (15) --- Ion Engine Ion Engine Light Treads Aluminum Leg Aluminum Leg Wheel Wheel High-capacity Matter Pod (200) Structural Scanner Improved Terrain Scanner Utility Shielding Makeshift Shrapnel Gun Peak State ------------ > --- POWER ------------ Ion Engine > --- PROPULSION ------- Aluminum Leg Aluminum Leg > --- UTILITY ---------- Improved Heat Sink Large Storage Unit > --- WEAPON ----------- Small Laser Small Laser > --- INVENTORY -------- Ion Engine Ion Engine Aluminum Leg Wheel Wheel High-capacity Matter Pod Improved Terrain Scanner Utility Shielding [Rating: 10] Favorites ----------- Power Ion Engine Engine Ion Engine Propulsion Aluminum Leg Treads Light Treads Leg Aluminum Leg Utility Large Storage Unit Device Improved Heat Sink Storage Large Storage Unit Protection Utility Shielding Weapon Small Laser Energy Gun Small Laser Ballistic Gun Light Assault Rifle Build | -11 -10 -10 ------- Run | Jun Mat Min Slots Evolved . | . . . Power . | . . . Propulsion . | . . . Utility . | . . . Weapon . | . . . Parts Attached 17 | 7 10 . Power 2 | 1 1 . Engine 2 | 1 1 . Core . | . . . Reactor . | . . . Propulsion 5 | 2 3 . Treads 2 | 2 . . Leg 3 | . 3 . Wheel . | . . . Hover . | . . . Flight . | . . . Utility 5 | 2 3 . Device 2 | 1 1 . Storage 2 | 1 1 . Processor . | . . . Hackware . | . . . Protection 1 | . 1 . Artifact . | . . . Weapon 5 | 2 3 . Energy Gun 3 | . 3 . Energy Cannon . | . . . Ballistic Gun 2 | 2 . . Ballistic Cannon . | . . . Launcher . | . . . Special Weapon . | . . . Impact Weapon . | . . . Slashing Weapon . | . . . Piercing Weapon . | . . . Special Melee Weapon . | . . . Unidentified Prototypes . | . . . Parts Lost 4 | . 4 . Power 1 | . 1 . Propulsion 1 | . 1 . Utility . | . . . Weapon 2 | . 2 . Highest Loss Streak 2 | . 2 . To Critical Strikes . | . . . Average Slot Usage (%) 98 | . 98 100 Engine 13 | . 13 14 Treads 8 | . 12 . Leg 19 | . 14 28 Device 8 | . 6 14 Storage 14 | . 14 14 Protection 4 | . 7 . Energy Gun 19 | . 14 28 Ballistic Gun 8 | . 13 . Naked Turns . | . . . Heaviest Build 28 | 13 28 28 Greatest Support 40 | 40 40 20 Greatest Overweight (x) 2 | . 2 1 Average Overweight (x) . | . . 1 Largest Inventory Capacity 15 | 8 15 15 Average Capacity 13 | 7 13 15 Most Carried 12 | 6 11 12 Average Carried 9 | 4 8 11 Final Capacity 15 | 8 15 15 Final Carried 12 | 6 11 12 Class Distribution -------------------- 100% | Mutant Dominant Class ---------------- Mutant | -10/Materials Mutant | -10/Mines Resources | -11 -10 -10 ----------- Run | Jun Mat Min Matter Collected 669 | 269 224 176 Remotely . | . . . Salvage Created 554 | 92 421 41 Parts 43 | 7 33 3 Haulers Intercepted . | . . . Recyclers Shooed 1 | 1 . . Parts Field Recycled . | . . . Retrieved Matter . | . . . Parts Self-Destructed . | . . . Prevented . | . . . Kills | -11 -10 -10 ------- Run | Jun Mat Min Combat Hostiles Destroyed 19 | . 15 4 Guns 19 | . 15 4 Classes Destroyed 6 | 2 3 1 Tunneler 2 | 2 . . Recycler 1 | 1 . . Watcher 1 | . 1 . Swarmer 9 | . 6 3 Grunt 9 | . 9 . Demolisher 1 | . . 1 Best Kill Streak 4 | 2 4 3 Combat Bots Only 4 | . 4 3 Max Kills in Single Turn 1 | 1 1 1 Gunslinging . | . . . Exploded . | . . . Melee . | . . . Uniques/NPCs Destroyed . | . . . Combat | -11 -10 -10 -------- Run | Jun Mat Min Damage Taken 1096 | . 949 147 Core 256 | . 204 52 Absorbed by Shields . | . . . Redirected to Shielding 8 | . 8 . Core Remaining (%) 100 | 100 . . Volleys Fired 87 | 12 66 9 Largest 2 | 2 2 2 Hottest 80 | 40 80 80 Shots Fired 173 | 24 131 18 Gun 173 | 24 131 18 Cannon . | . . . Launcher . | . . . Special . | . . . Kinetic 125 | 24 101 . Thermal 48 | . 30 18 Explosive . | . . . Electromagnetic . | . . . Robot Hit Streak 15 | 4 15 4 Robot Miss Streak 3 | 2 3 2 Penetration Max . | . . . Secondary Targets 1 | . 1 . Max Gunslinging Chain 1 | . 1 . Shots Hit Robots 117 | 14 93 10 Core Hits 44 | 6 33 5 Critical Kills 3 | . 3 . Critical Parts Destroyed . | . . . Critical Strikes 3 | . 3 . Destroy 3 | . 3 . Melee Attacks . | . . . Impact . | . . . Slashing . | . . . Piercing . | . . . Sneak Attacks . | . . . Combat Hostiles . | . . . Follow-up Attacks . | . . . Damage Inflicted 1073 | 121 832 120 Guns 1058 | 121 819 118 Cannons . | . . . Explosions . | . . . Melee . | . . . Ramming 15 | . 13 2 Kinetic 724 | 121 603 . Thermal 334 | . 216 118 Explosive . | . . . Electromagnetic . | . . . Impact . | . . . Slashing . | . . . Piercing . | . . . Highest Corruption . | . . . Average Corruption . | . . . Corruption Purged . | . . . Corruption Blocked . | . . . Overload Shots . | . . . Overflow Damage . | . . . Projectiles . | . . . Explosions . | . . . Melee . | . . . Knockbacks . | . . . Impact . | . . . Kinetic . | . . . Secondary . | . . . Self-Inflicted Damage . | . . . Shots . | . . . Rammed . | . . . Targets Rammed 3 | . 2 1 Kicked 3 | . 2 1 Crushed . | . . . Highest Temperature 141 | . 141 . Average Temperature 33 | . 33 . Received Heat Transfer 375 | . 375 . Siege Activations . | . . . Robots Corrupted . | . . . Combat Hostiles . | . . . Parts Fried . | . . . Impact Corruptions . | . . . Robots Melted . | . . . Combat Hostiles . | . . . Parts Melted . | . . . Heat Transferred 725 | . 475 250 Parts Sabotaged . | . . . Parts Stolen . | . . . Parts Stripped . | . . . Power Chain Reactions . | . . . Missiles Intercepted . | . . . Alert | -11 -10 -10 ------- Run | Jun Mat Min Peak Influence 427 | 15 427 128 Initial 48 | . 9 48 Average 165 | 4 239 79 Maximum Alert Level 2 | . 2 . Low Security (%) 54 | 100 21 100 Level 1 43 | . 74 . Level 2 2 | . 4 . Level 3 . | . . . Level 4 . | . . . Level 5 . | . . . High Security . | . . . Max Security . | . . . Squads Dispatched 5 | . 5 . Investigation 3 | . 3 . Extermination . | . . . Reinforcement 2 | . 2 . Assault . | . . . Garrison . | . . . Intercept . | . . . Searches Triggered . | . . . Construction Impeded . | . . . Haulers Reinforced . | . . . Active Scanning Responses . | . . . Cargo Convoy Interrupts . | . . . Stealth | -11 -10 -10 --------- Run | Jun Mat Min Distress Signals 3 | . 3 . Communications Jammed . | . . . Distress Signals . | . . . Times Spotted 30 | . 25 5 Peak Tracking Total 4 | . 4 3 Tactical Retreats 1 | . 1 . Traps | -11 -10 -10 ------- Run | Jun Mat Min Traps Triggered 1 | . 1 . Indirectly . | . . . Trap Hack Attempts . | . . . Triggered . | . . . Disarmed . | . . . Reprogrammed . | . . . Reused . | . . . Traps Extracted . | . . . Installed . | . . . Triggered 2 | . . 2 Machines | -11 -10 -10 ---------- Run | Jun Mat Min Machines Disabled . | . . . Max in Single Turn . | . . . Machines Repaired . | . . . Machines Sabotaged . | . . . Overloaded Fab Kills . | . . . Hacking | -11 -10 -10 --------- Run | Jun Mat Min Machines Accessed 6 | . 5 1 Terminals 4 | . 3 1 Fabricators . | . . . Repair Stations . | . . . Recycling Units 2 | . 2 . Scanalyzers . | . . . Garrison Access . | . . . Total Hacks 19 | . 14 5 Successful 8 | . 8 . Failed 11 | . 6 5 Catastrophic 1 | . . 1 Database Lockouts . | . . . Manual 19 | . 14 5 Terminals 17 | . 12 5 Fabricators . | . . . Repair Stations . | . . . Recycling Units 2 | . 2 . Scanalyzers . | . . . Garrison Access . | . . . Terminal Hacks 3 | . 3 . Robot Analysis 2 | . 2 . Branch Access Points 1 | . 1 . Fabricator Hacks . | . . . Repair Station Hacks . | . . . Recycling Unit Hacks . | . . . Scanalyzer . | . . . Garrison Access Hacks . | . . . Unauthorized Hacks 5 | . 5 . Terminals 3 | . 3 . Botnet 3 | . 3 . Fabricators . | . . . Repair Stations . | . . . Recycling Units 2 | . 2 . Tunnel 2 | . 2 . Scanalyzers . | . . . Garrison Access . | . . . Data Cores Recovered . | . . . Used . | . . . Hacking Detections 4 | . 3 1 Full Trace Events 1 | . 1 . Feedback Events . | . . . Feedback Blocked . | . . . Robot Schematics Acquired . | . . . Robots Built . | . . . Authchips . | . . . Time . | . . . Total Robot Build Rating . | . . . Part Schematics Acquired . | . . . Parts Built . | . . . Authchips . | . . . Time . | . . . Total Part Build Rating . | . . . Parts Repaired . | . . . Time . | . . . Parts Recycled . | . . . Recycled Matter . | . . . Retrieved Matter . | . . . Retrieved Components . | . . . Parts Scanalyzed . | . . . Part Schematics Acquired . | . . . Parts Damaged . | . . . Bothacking | -11 -10 -10 ------------ Run | Jun Mat Min Used RIF Installer . | . . . Robots Hacked . | . . . Non-combat . | . . . Combat . | . . . Robot Hacks Applied . | . . . Relay Couplers Released . | . . . Fabnet Peak Effective % . | . . . Robots Rewired . | . . . Allies Hacked . | . . . Hacks Repelled . | . . . Allies | -11 -10 -10 -------- Run | Jun Mat Min Total Allies . | . . . Largest Group . | . . . Highest-Rated Group . | . . . Highest-Rated Ally . | . . . Total Orders . | . . . Ally Attacks . | . . . Total Damage . | . . . Kills . | . . . Allies Corrupted . | . . . Allies Melted . | . . . Intel | -11 -10 -10 ------- Run | Jun Mat Min Robot Analysis Total 2 | . 2 . Derelict Logs Recovered 1 | . . 1 Drone Launches . | . . . Drone Recoveries . | . . . Exploration | -11 -10 -10 ------------- Run | Jun Mat Min Turns Passed 1444 | 140 839 465 Spaces Moved 627 | 61 337 229 Core 4 | 4 . . Treads 187 | 57 130 . Legs 436 | . 207 229 Wheels . | . . . Hover . | . . . Flight . | . . . Fastest Speed 50 | 50 160 190 Average Speed 181 | 152 181 190 Slowest Speed 260 | 160 260 190 Overloaded Moves . | . . . Propulsion Burnouts . | . . . Robots Hopped . | . . . Cave-ins Triggered . | . . . Exploration Rate (%) 37 | 5 62 44 Regions Visited 2 Branch Regions 1 Pre-discovered Areas 3 | . 2 1 Known Exits Taken 1 | . 1 . Unknown Exits Taken 1 | 1 . . Scrap Searched . | . . . Spaces Dug . | . . . Terrain Destroyed . | . . . Melee . | . . . Projectile . | . . . AOE . | . . . Terrain Rammed . | . . . Walls Destroyed . | . . . Machines Disabled . | . . . Actions | -11 -10 -10 --------- Run | Jun Mat Min Total 780 | 85 453 242 Wait 31 | . 29 2 Move 625 | 60 336 229 Hop . | . . . Pick Up 13 | 6 6 1 Fast Attach 10 | 7 3 . Attach 3 | . 3 . Detach 1 | . 1 . Swap 4 | . 4 . Drop 3 | . 3 . Fire 87 | 12 66 9 Melee . | . . . Ram . | . . . Kick 3 | . 2 1 Crush . | . . . Escape Stasis . | . . . Rewire . | . . . Trap . | . . . Miscellaneous . | . . . Route ------- -11/Junkyard -10/Materials (discovered 2 exits: [*Mat] / *Min) -10/Mines History --------- Turn | Location | Event 5 | -11/Junkyard | Discovered new exit (range 15) 141 | -11/Junkyard | Entered Materials 307 | -10/Materials | Build established: Mutant 423 | -10/Materials | Core integrity fell below 50% 641 | -10/Materials | Core integrity fell below 20% 725 | -10/Materials | Identified exit to Mines 769 | -10/Materials | Discovered new exit (range 10) 980 | -10/Materials | Entered Mines 1001 | -10/Mines | A weapon hastily lodged in a ceiling crevice suddenly fell to the ground 1082 | -10/Mines | Learned location of Zion (-6) 1121 | -10/Mines | Assembled infested the area 1126 | -10/Mines | Assisted by a Guerilla fighting off Assembled 1445 | -10/Mines | Destroyed by D-53 Grenadier with Mini Grenade Launcher Last Messages --------------- 01126_ A derelict emerges from the shadows: "You need to get out of here! I've been tracking a group of Assembled to figure out where they're coming from, and they're closing on this area, come on!" 01164_ S-10 Pest destroyed. 01180_ Acquired 12 matter. 01184_ Acquired 17 matter. 01192_ Connecting with Terminal... 01269_ Acquired 14 matter. 01271_ Acquired 7 matter. 01272_ Acquired 5 matter. 01274_ Acquired 4 matter. 01276_ Acquired 5 matter. 01278_ Acquired 14 matter. 01280_ Acquired 4 matter. 01284_ Acquired 7 matter. 01286_ Acquired 1 matter. 01301_ Acquired 5 matter. 01303_ Acquired 69 matter. 01444_ K-01 Serf collects debris. 01444_ D-53 Grenadier destroyed. Map ----- +----------------------------------------------------+ | ????????????????# ##?????????????????????? | | ????????????????# ###???????????????????? | | ????#####???????# ##??????????????????? | | ???## ##??????# #??????????????????? | | ???# #???????# ##?????????????????? | | ???# """ ##???????# ##????????????????? | | ??## """ ####???## ##???????????????? | | ??# """ ##### #???????????????? | | ??# ##??????????????? | | ??# ## #??????????????? | | ??# #### ## ### ## #??????????????? | | ??# #??# ## #?# ### ##??????????????? | | ??# #??# ### #?# #???????????????? | | ??## ##?## #?# ##???????????????? | | ???####?## ####?# ###????????????????? | | ??????### % ##????###??????????????????? | | ?????##"* #??????????????????????????? | | ????## !*%= % #??????????????????????????? | | ????# %= ##??????????????????????????? | | ????# ##???????????????????????????? | | ????# ## ######?##?????????????????????? | | ????# "#### ### ## ##????????????????????? | | ???## ##??# ## # #????????????????????? | | ???# ###?# ## #????????????????????? | | ???# ### % % ##???????????????????? | | ???# " ######## @ #???????????????????? | | ???# #??????# #???????????????????? | | ???# ##?????# #?????????????????? | | ???# ##??????###d# #?????????????????? | | ???# ##?????????#r# # #k ????????????????? | | ???# #??????????# #?###?##???????????????? | | ??## #####??????# ??????????????????????? | | ??#" #??????# ??????????????????????? | | ??####### #??????## ??????????????????????? | | ????????# #???????? ??????????????????????? | | ????????# #????????#??????????????????????? | | ????????# #???????????????????????????????? | | ????????# #???????????????????????????????? | | ????????# #???????????????????????????????? | | ????????# #???????????????????????????????? | | ????????# #???????????????????????????????? | | ????????# #???????????????????????????????? | | ???###### #???????????????????????????????? | | ??## #???????????????????????????????? | | ??# #???????????????????????????????? | | ??# ####???????????????????????????????? | | ??## ####??????????????????????????????? | | ???## ##?????????????????????????????? | | ????## ##????????????????????????????? | | ?????# """ ##???????????????????????????? | +----------------------------------------------------+ Best States ------------- Heat Dissipation 39 Energy Generation 10 Energy Capacity 250 Matter Stores 300 Matter Capacity 300 Sight Range 16 Terrain Scan Range 16 Terrain Scan Density 10 Utility Shielding 33 Evasion (%) 40 Recoil Reduction 2 Item Schematics ----------------- None Robot Schematics ------------------ None Fabricated ------------ Nothing Alien Tech Used ----------------- None Achievements -------------- None Challenges ------------ None Game ------ Seed AutogunBoreFemtoactuators Manual? 0 Play Time 00:06:29 Cumulative 211.0 hours Start 2023.08.17 @ 17:59:19 End 2023.08.17 @ 18:04:43 Sessions 1 Manual Loads 0 Difficulty Rogue Special Mode None Game No. 249 Rogue 249 Adventurer 0 Explorer 0 Win Type - Total 5 Types 3/0/0/1/0/0/1/0/0 Lore% 71 Gallery% 78 Achievement% 63 Wizard Run 0 Options --------- ASCII 0 Keyboard 0 Movement Numpad Keybinds 0 Fullscreen 1 Font 18/SmallcapsGlow Map View 76x50 Tactical HUD 1 Map Filters NONE Filters NONE Steam 1 RUN: ec01e453-fadf-497c-a0ab-d9952e89ada3